lending/lending_fUSD_20240219
["ID","MTS","AMOUNT","RATE_DAILY","PERIOD"]
[314484345,1708375933646,-764.49,0.00047671,30]
[314484346,1708375933656,-500.0,0.00047671,30]
[314484347,1708375933666,-500.0,0.00047671,30]
[314484348,1708375933677,-625.5,0.00047671,30]
[314484349,1708375933688,-300.24630854,0.00047671,30]
[314484350,1708375933698,-500.0,0.00047671,30]
[314484351,1708375933709,-871.41,0.00047671,30]
[314484352,1708375933720,-500.0,0.00047671,30]
[314484353,1708375933731,-937.75,0.00047671,30]
[314484354,1708375933741,-500.0,0.00047671,30]
[314484355,1708375933751,-500.0,0.00047671,30]
[314484356,1708375933762,-500.0,0.00047671,30]
[314484357,1708375933772,-500.0,0.00047671,30]
[314484358,1708375933783,-500.0,0.00047671,30]
[314484359,1708375933793,-500.0,0.00047671,30]
[314484360,1708375933803,-2580.06,0.00047671,30]
[314484361,1708375933814,-500.0,0.00047671,30]
[314484362,1708375933824,-500.0,0.00047671,30]
[314484363,1708375933834,-874.69,0.00047671,30]
[314484364,1708375933846,-580.6,0.00047671,30]
[314484365,1708375933856,-500.0,0.00047671,30]
[314484366,1708375933866,-742.82,0.00047671,30]
[314484367,1708375933877,-1385.86,0.00047671,30]
[314484368,1708375933887,-626.34,0.00047671,30]
[314484369,1708375933897,-500.0,0.00047671,30]
[314484370,1708375933907,-1122.0,0.00047671,30]
[314484371,1708375933918,-500.0,0.00047671,30]
[314484372,1708375933928,-500.0,0.00047671,30]
[314484373,1708375933938,-417.48859827,0.00047671,30]
[314484374,1708375933949,-673.8,0.00047671,30]
[314484375,1708375933959,-948.86,0.00047671,30]
[314484376,1708375933970,-500.0,0.00047671,30]
[314484377,1708375933980,-500.0,0.00047671,30]
[314484378,1708375933990,-500.0,0.00047671,30]
[314484379,1708375934001,-500.0,0.00047671,30]
[314484380,1708375934011,-1101.95,0.00047671,30]
[314484381,1708375934021,-500.0,0.00047671,30]
[314484382,1708375934031,-500.0,0.00047671,30]
[314484383,1708375934041,-681.52,0.00047671,30]
[314484384,1708375934051,-500.0,0.00047671,30]
[314484385,1708375934061,-500.0,0.00047671,30]
[314484386,1708375934071,-1174.33,0.00047671,30]
[314484387,1708375934083,-500.0,0.00047671,30]
[314484388,1708375934096,-981.09,0.00047671,30]
[314484389,1708375934106,-500.0,0.00047671,30]
[314484390,1708375934116,-4511.29,0.00047671,30]
[314484391,1708375934125,-1043.21,0.00047671,30]
[314484392,1708375934137,-500.0,0.00047671,30]
[314484393,1708375934146,-2077.3,0.00047671,30]
[314484394,1708375934156,-500.0,0.00047671,30]
[314484395,1708375934165,-500.0,0.00047671,30]
[314484396,1708375934176,-500.0,0.00047671,30]
[314484397,1708375934186,-250.0,0.00047671,30]
[314484398,1708375934196,-500.0,0.00047671,30]
[314484399,1708375934207,-500.0,0.00047671,30]
[314484400,1708375934217,-888.3,0.00047671,30]
[314484401,1708375934228,-610.38,0.00047671,30]
[314484402,1708375934238,-500.0,0.00047671,30]
[314484403,1708375934248,-589.7302673,0.00047671,30]
[314484404,1708375934259,-500.0,0.00047671,30]
[314484405,1708375934269,-3093.94,0.00047671,30]
[314484406,1708375934279,-1342.73,0.00047671,30]
[314484407,1708375934289,-500.0,0.00047671,30]
[314484408,1708375934298,-500.0,0.00047671,30]
[314484409,1708375934308,-4450.76,0.00047671,30]
[314484410,1708375934318,-2986.67,0.00047671,30]
[314484411,1708375934329,-927.23,0.00047671,30]
[314484412,1708375934339,-500.0,0.00047671,30]
[314484413,1708375934348,-500.0,0.00047671,30]
[314484414,1708375934358,-500.0,0.00047671,30]
[314484415,1708375934368,-4576.97,0.00047671,30]
[314484416,1708375934378,-1346.18,0.00047671,30]
[314484417,1708375934388,-500.0,0.00047671,30]
[314484418,1708375934398,-2880.36,0.00047671,30]
[314484419,1708375934409,-500.0,0.00047671,30]
[314484420,1708375934421,-500.0,0.00047671,30]
[314484421,1708375934700,-500.0,0.00047671,30]
[314484422,1708375934710,-540.25,0.00047671,30]
[314484423,1708375934720,-942.11,0.00047671,30]
[314484424,1708375934729,-500.0,0.00047671,30]
[314484425,1708375934739,-802.39,0.00047671,30]
[314484426,1708375934748,-500.0,0.00047671,30]
[314484427,1708375934757,-519.61405327,0.00047671,30]
[314484428,1708375934767,-500.0,0.00047671,30]
[314484429,1708375934777,-500.0,0.00047671,30]
[314484430,1708375934787,-3501.98,0.00047671,30]
[314484431,1708375934797,-3067.49,0.00047671,30]
[314484432,1708375934808,-500.0,0.00047671,30]
[314484433,1708375934817,-428.76500875,0.00047671,30]
[314484434,1708375934826,-752.55,0.00047671,30]
[314484435,1708375934835,-500.0,0.00047671,30]
[314484436,1708375934845,-500.0,0.00047671,30]
[314484437,1708375934854,-500.0,0.00047671,30]
[314484438,1708375934863,-983.46,0.00047671,30]
[314484439,1708375934873,-500.0,0.00047671,30]
[314484440,1708375934882,-2258.21,0.00047671,30]
[314484441,1708375934892,-3285.56,0.00047671,30]
[314484442,1708375934902,-708.73,0.00047671,30]
[314484443,1708375934912,-500.0,0.00047671,30]
[314484444,1708375934921,-1637.57,0.00047671,30]
[314484445,1708375934930,-764.0,0.00047671,30]
[314484446,1708375934939,-2380.23,0.00047671,30]
[314484447,1708375934949,-947.27,0.00047671,30]
[314484448,1708375934958,-500.0,0.00047671,30]
[314484449,1708375934967,-181.73033475,0.00047671,30]
[314484450,1708375934977,-500.0,0.00047671,30]
[314484451,1708375934986,-500.0,0.00047671,30]
[314484452,1708375934995,-500.0,0.00047671,30]
[314484453,1708375935005,-23500.73,0.00047671,30]
[314484454,1708375935014,-5708.36,0.00047671,30]
[314484455,1708375935023,-500.0,0.00047671,30]
[314484456,1708375935033,-500.0,0.00047671,30]
[314484457,1708375935043,-500.0,0.00047671,30]
[314484458,1708375935052,-521.33,0.00047671,30]
[314484459,1708375935062,-500.0,0.00047671,30]
[314484460,1708375935072,-3029.82,0.00047671,30]
[314484461,1708375935083,-500.0,0.00047671,30]
[314484462,1708375935094,-1961.93,0.00047671,30]
[314484463,1708375935105,-500.0,0.00047671,30]
[314484464,1708375935114,-532.9,0.00047671,30]
[314484465,1708375935124,-2118.66,0.00047671,30]
[314484466,1708375935134,-599.57,0.00047671,30]
[314484467,1708375935144,-500.0,0.00047671,30]
[314484468,1708375935153,-608.54121687,0.00047671,30]
[314484469,1708375935163,-500.0,0.00047671,30]
[314484470,1708375935172,-611.00643311,0.00047671,30]
[314484471,1708375935182,-500.0,0.00047671,30]
[314484472,1708375935192,-542.93037534,0.00047671,30]
[314484473,1708375935202,-2219.53,0.00047671,30]
[314484474,1708375935212,-2534.45,0.00047671,30]
[314484475,1708375935222,-1000.0,0.00047671,30]
[314484476,1708375935231,-4072.8,0.00047671,30]
[314484477,1708375935241,-6525.8,0.00047671,30]
[314484478,1708375935251,-500.0,0.00047671,30]
[314484479,1708375935261,-1226.32,0.00047671,30]
[314484480,1708375935270,-2415.59,0.00047671,30]
[314484481,1708375935281,-3574.68,0.00047671,30]
[314484482,1708375935289,-500.0,0.00047671,30]
[314484483,1708375935299,-500.0,0.00047671,30]
[314484484,1708375935308,-500.0,0.00047671,30]
[314484485,1708375935317,-500.0,0.00047671,30]
[314484486,1708375935326,-500.0,0.00047671,30]
[314484487,1708375935335,-895.28,0.00047671,30]
[314484488,1708375935345,-1108.54,0.00047671,30]
[314484489,1708375935354,-500.0,0.00047671,30]
[314484490,1708375935363,-500.0,0.00047671,30]
[314484491,1708375935373,-500.0,0.00047671,30]
[314484492,1708375935382,-500.0,0.00047671,30]
[314484493,1708375935391,-2463.17,0.00047671,30]
[314484494,1708375935401,-1236.32,0.00047671,30]
[314484495,1708375935410,-500.0,0.00047671,30]
[314484496,1708375935420,-2672.0,0.00047671,30]
[314484497,1708375935430,-500.0,0.00047671,30]
[314484498,1708375935439,-500.0,0.00047671,30]
[314484499,1708375935448,-500.0,0.00047671,30]
[314484500,1708375935457,-768.47,0.00047671,30]
[314484501,1708375935467,-500.0,0.00047671,30]
[314484502,1708375935476,-500.0,0.00047671,30]
[314484503,1708375935485,-1506.06,0.00047671,30]
[314484504,1708375935495,-4807.82,0.00047671,30]
[314484505,1708375935505,-1592.25,0.00047671,30]
[314484506,1708375935514,-2737.65,0.00047671,30]
[314484507,1708375935524,-947.04,0.00047671,30]
[314484508,1708375935534,-500.0,0.00047671,30]
[314484509,1708375935543,-500.0,0.00047671,30]
[314484510,1708375935552,-1685.16,0.00047671,30]
[314484511,1708375935562,-500.0,0.00047671,30]
[314484512,1708375935572,-1478.0,0.00047671,30]
[314484513,1708375935582,-840.54,0.00047671,30]
[314484514,1708375935591,-3582.15,0.00047671,30]
[314484515,1708375935601,-689.96,0.00047671,30]
[314484516,1708375935611,-2210.61,0.00047671,30]
[314484517,1708375935621,-2915.8,0.00047671,30]
[314484518,1708375935631,-2089.99,0.00047671,30]
[314484519,1708375935640,-500.0,0.00047671,30]
[314484520,1708375935651,-2806.73,0.00047671,30]
[314484521,1708375935660,-500.0,0.00047671,30]
[314484522,1708375935670,-500.0,0.00047671,30]
[314484523,1708375935680,-500.0,0.00047671,30]
[314484524,1708375935690,-995.73,0.00047671,30]
[314484525,1708375935700,-500.0,0.00047671,30]
[314484526,1708375935710,-535.41,0.00047671,30]
[314484527,1708375935720,-4007.0,0.00047671,30]
[314484528,1708375935729,-532.82109396,0.00047671,30]
[314484529,1708375935740,-5460.88,0.00047671,30]
[314484530,1708375935749,-500.0,0.00047671,30]
[314484531,1708375935759,-720.61,0.00047671,30]
[314484532,1708375935769,-500.0,0.00047671,30]
[314484533,1708375935779,-770.97,0.00047671,30]
[314484534,1708375935789,-2873.04,0.00047671,30]
[314484535,1708375935798,-500.0,0.00047671,30]
[314484536,1708375935807,-500.0,0.00047671,30]
[314484537,1708375935817,-500.0,0.00047671,30]
[314484538,1708375935826,-500.0,0.00047671,30]
[314484539,1708375935835,-3954.52,0.00047671,30]
[314484540,1708375935845,-3457.64,0.00047671,30]
[314484541,1708375935854,-500.0,0.00047671,30]
[314484542,1708375935863,-2900.34,0.00047671,30]
[314484543,1708375935872,-1032.0,0.00047671,30]
[314484544,1708375935881,-1711.5,0.00047671,30]
[314484545,1708375935891,-500.0,0.00047671,30]
[314484546,1708375935900,-1637.24,0.00047671,30]
[314484547,1708375935910,-500.0,0.00047671,30]
[314484548,1708375935919,-500.0,0.00047671,30]
[314484549,1708375935928,-1605.65,0.00047671,30]
[314484550,1708375935937,-500.0,0.00047671,30]
[314484551,1708375935946,-1340.91,0.00047671,30]
[314484552,1708375935956,-4980.44,0.00047671,30]
[314484553,1708375935965,-500.0,0.00047671,30]
[314484554,1708375935974,-1138.43,0.00047671,30]
[314484555,1708375935983,-4358.32,0.00047671,30]
[314484556,1708375935993,-3294.28,0.00047671,30]
[314484557,1708375936002,-500.0,0.00047671,30]
[314484558,1708375936011,-1721.24,0.00047671,30]
[314484559,1708375936020,-500.0,0.00047671,30]
[314484560,1708375936029,-2226.31,0.00047671,30]
[314484561,1708375936039,-500.0,0.00047671,30]
[314484562,1708375936048,-500.0,0.00047671,30]
[314484563,1708375936057,-11469.95,0.00047671,30]
[314484564,1708375936065,-298.26103248,0.00047671,30]
[314484565,1708375936076,-500.0,0.00047671,30]
[314484566,1708375936086,-500.0,0.00047671,30]
[314484567,1708375936098,-1155.9,0.00047671,30]
[314484568,1708375936107,-914.27,0.00047671,30]
[314484569,1708375936117,-4304.4,0.00047671,30]
[314484570,1708375936126,-3503.11,0.00047671,30]
[314484571,1708375936135,-500.0,0.00047671,30]
[314484572,1708375936144,-500.0,0.00047671,30]
[314484573,1708375936153,-522.1348154,0.00047671,30]
[314484574,1708375936163,-2631.73,0.00047671,30]
[314484575,1708375936174,-500.0,0.00047671,30]
[314484576,1708375936183,-500.0,0.00047671,30]
[314484577,1708375936192,-520.42125005,0.00047671,30]
[314484578,1708375936202,-7606.19,0.00047671,30]
[314484579,1708375936211,-500.0,0.00047671,30]
[314484580,1708375936220,-500.0,0.00047671,30]
[314484581,1708375936229,-500.0,0.00047671,30]
[314484582,1708375936238,-2816.09,0.00047671,30]
[314484583,1708375936247,-1106.22,0.00047671,30]
[314484584,1708375936256,-1288.03,0.00047671,30]
[314484585,1708375936266,-500.0,0.00047671,30]
[314484586,1708375936275,-500.0,0.00047671,30]
[314484587,1708375936283,-800.19,0.00047671,30]
[314484588,1708375936293,-500.0,0.00047671,30]
[314484589,1708375936302,-500.0,0.00047671,30]
[314484590,1708375936313,-500.0,0.00047671,30]
[314484591,1708375936322,-500.0,0.00047671,30]
[314484592,1708375936332,-5000.0,0.00047671,42]
[314484593,1708375936342,-2194.88,0.00047671,30]
[314484594,1708375936352,-4924.17,0.00047671,30]
[314484595,1708375936361,-6760.53,0.00047671,30]
[314484596,1708375936370,-1418.43,0.00047671,30]
[314484597,1708375936380,-500.0,0.00047671,30]
[314484598,1708375936389,-707.46,0.00047671,30]
[314484599,1708375936398,-500.0,0.00047671,30]
[314484600,1708375936407,-1586.82,0.00047671,30]
[314484601,1708375936416,-6176.75,0.00047671,30]
[314484602,1708375936426,-500.0,0.00047671,30]
[314484603,1708375936435,-974.61,0.00047671,30]
[314484604,1708375936444,-500.0,0.00047671,30]
[314484605,1708375936454,-502.06,0.00047671,30]
[314484606,1708375936463,-620.96,0.00047671,30]
[314484607,1708375936473,-500.0,0.00047671,30]
[314484608,1708375936482,-500.0,0.00047671,30]
[314484609,1708375936492,-1370.86,0.00047671,30]
[314484610,1708375936501,-500.0,0.00047671,30]
[314484611,1708375936510,-18642.5,0.00047671,30]
[314484612,1708375936519,-500.0,0.00047671,30]
[314484613,1708375936529,-500.0,0.00047671,30]
[314484614,1708375936538,-957.13,0.00047671,30]
[314484615,1708375936547,-664.1,0.00047671,30]
[314484616,1708375936556,-500.0,0.00047671,30]
[314484617,1708375936565,-2270.35,0.00047671,30]
[314484618,1708375936574,-1421.33,0.00047671,30]
[314484619,1708375936584,-1319.59,0.00047671,30]
[314484620,1708375936593,-377.85,0.00047671,30]
[314484621,1708375936602,-43487.96,0.00047671,30]
[314484622,1708375936611,-1370.06,0.00047671,30]
[314484623,1708375936620,-3424.97,0.00047671,30]
[314484624,1708375936630,-500.0,0.00047671,30]
[314484625,1708375936640,-500.0,0.00047671,30]
[314484626,1708375936650,-500.0,0.00047671,30]
[314484627,1708375936660,-2622.18,0.00047671,30]
[314484628,1708375936670,-500.0,0.00047671,30]
[314484629,1708375936679,-500.0,0.00047671,30]
[314484630,1708375936689,-731.53,0.00047671,30]
[314484631,1708375936698,-500.0,0.00047671,30]
[314484632,1708375936707,-1138.11,0.00047671,30]
[314484633,1708375936717,-500.0,0.00047671,30]
[314484634,1708375936726,-500.0,0.00047671,30]
[314484635,1708375936735,-3031.14,0.00047671,30]
[314484636,1708375936745,-500.0,0.00047671,30]
[314484637,1708375936755,-500.0,0.00047671,30]
[314484638,1708375936764,-4401.37,0.00047671,30]
[314484639,1708375936773,-924.5,0.00047671,30]
[314484640,1708375936782,-500.0,0.00047671,30]
[314484641,1708375936792,-724.1,0.00047671,2]
[314484642,1708375936801,-501.9,0.00047671,30]
[314484643,1708375936811,-241.83593762,0.00047671,30]
[314484644,1708375936820,-500.0,0.00047671,30]
[314484645,1708375936829,-730.67,0.00047671,30]
[314484646,1708375936838,-500.0,0.00047671,30]
[314484647,1708375936847,-500.0,0.00047671,30]
[314484648,1708375936856,-500.0,0.00047671,30]
[314484649,1708375936864,-2841.63,0.00047671,30]
[314484650,1708375936873,-8215.23,0.00047671,30]
[314484651,1708375936882,-500.0,0.00047671,30]
[314484652,1708375936891,-515.05159511,0.00047671,30]
[314484653,1708375936900,-500.0,0.00047671,30]
[314484654,1708375936908,-642.81,0.00047671,30]
[314484655,1708375936917,-506.74,0.00047671,30]
[314484656,1708375936926,-2484.41,0.00047671,30]
[314484657,1708375937020,-3313.69,0.00047671,30]
[314484658,1708375937029,-2832.73,0.00047671,30]
[314484659,1708375937038,-2792.02,0.00047671,30]
[314484660,1708375937047,-500.0,0.00047671,30]
[314484661,1708375937056,-500.0,0.00047671,30]
[314484662,1708375937068,-3103.46,0.00047671,30]
[314484663,1708375937078,-974.83,0.00047671,30]
[314484664,1708375937090,-1617.41,0.00047671,30]
[314484665,1708375937100,-3395.26,0.00047671,30]
[314484666,1708375937109,-469.84272695,0.00047671,30]
[314484667,1708375937118,-571.28,0.00047671,30]
[314484668,1708375937127,-4198.24,0.00047671,30]
[314484669,1708375937138,-500.0,0.00047671,30]
[314484670,1708375937147,-500.0,0.00047671,30]
[314484671,1708375937156,-1617.03,0.00047671,30]
[314484672,1708375937166,-1442.14,0.00047671,30]
[314484673,1708375937175,-500.0,0.00047671,30]
[314484674,1708375937185,-500.0,0.00047671,30]
[314484675,1708375937193,-555.41,0.00047671,30]
[314484676,1708375937202,-500.0,0.00047671,30]
[314484677,1708375937211,-2704.31,0.00047671,30]
[314484678,1708375937220,-500.0,0.00047671,30]
[314484679,1708375937228,-3256.74,0.00047671,30]
[314484680,1708375937238,-1307.39,0.00047671,30]
[314484681,1708375937247,-10591.79,0.00047671,30]
[314484682,1708375937256,-906.19,0.00047671,30]
[314484683,1708375937266,-1843.46,0.00047671,30]
[314484684,1708375937274,-500.0,0.00047671,30]
[314484685,1708375937283,-500.0,0.00047671,30]
[314484686,1708375937293,-500.0,0.00047671,30]
[314484687,1708375937302,-2160.68,0.00047671,30]
[314484688,1708375937311,-1427.99,0.00047671,30]
[314484689,1708375937320,-595.56,0.00047671,30]
[314484690,1708375937330,-538.66,0.00047671,30]
[314484691,1708375937339,-645.76,0.00047671,30]
[314484692,1708375937348,-500.0,0.00047671,30]
[314484693,1708375937357,-993.04,0.00047671,30]
[314484694,1708375937367,-2630.29,0.00047671,30]
[314484695,1708375937376,-688.24,0.00047671,30]
[314484696,1708375937384,-500.0,0.00047671,30]
[314484697,1708375937393,-500.0,0.00047671,30]
[314484698,1708375937402,-1027.61,0.00047671,30]
[314484699,1708375937411,-1435.94,0.00047671,30]
[314484700,1708375937420,-1182.36,0.00047671,30]
[314484701,1708375937429,-10839.07,0.00047671,30]
[314484702,1708375937438,-1000.0,0.00047671,7]
[314484703,1708375937448,-500.0,0.00047671,30]
[314484704,1708375937456,-413.49899826,0.00047671,30]
[314484705,1708375937465,-2808.92,0.00047671,30]
[314484706,1708375937474,-500.0,0.00047671,30]
[314484707,1708375937483,-500.0,0.00047671,30]
[314484708,1708375937492,-697.96,0.00047671,30]
[314484709,1708375937501,-796.11,0.00047671,30]
[314484710,1708375937510,-500.0,0.00047671,30]
[314484711,1708375937520,-5101.05,0.00047671,30]
[314484712,1708375937529,-500.0,0.00047671,30]
[314484713,1708375937539,-553.84,0.00047671,30]
[314484714,1708375937548,-3052.86,0.00047671,30]
[314484715,1708375937559,-1303.89,0.00047671,30]
[314484716,1708375937568,-500.0,0.00047671,30]
[314484717,1708375937576,-500.0,0.00047671,30]
[314484718,1708375937586,-1201.23,0.00047671,30]
[314484719,1708375937595,-500.0,0.00047671,30]
[314484720,1708375937604,-500.0,0.00047671,30]
[314484721,1708375937613,-500.0,0.00047671,30]
[314484722,1708375937621,-656.54,0.00047671,30]
[314484723,1708375937630,-3044.92,0.00047671,30]
[314484724,1708375937639,-2710.85,0.00047671,30]
[314484725,1708375937648,-571.63,0.00047671,30]
[314484726,1708375937657,-991.51,0.00047671,30]
[314484727,1708375937665,-1083.47,0.00047671,30]
[314484728,1708375937674,-500.0,0.00047671,30]
[314484729,1708375937682,-4385.72,0.00047671,30]
[314484730,1708375937691,-500.0,0.00047671,30]
[314484731,1708375937700,-500.0,0.00047671,30]
[314484732,1708375937708,-500.0,0.00047671,30]
[314484733,1708375937717,-500.0,0.00047671,30]
[314484734,1708375937725,-500.0,0.00047671,30]
[314484735,1708375937734,-500.0,0.00047671,30]
[314484736,1708375937743,-174.44129235,0.00047671,30]
[314484737,1708375937752,-497.73423933,0.00047671,30]
[314484738,1708375937761,-3967.79,0.00047671,30]
[314484739,1708375937770,-939.16,0.00047671,30]
[314484740,1708375937779,-587.09,0.00047671,30]
[314484741,1708375937788,-10289.24,0.00047671,30]
[314484742,1708375937797,-2003.31,0.00047671,30]
[314484743,1708375937806,-500.0,0.00047671,30]
[314484744,1708375937815,-500.0,0.00047671,30]
[314484745,1708375937824,-990.49,0.00047671,30]
[314484746,1708375937833,-500.0,0.00047671,30]
[314484747,1708375937843,-500.0,0.00047671,30]
[314484748,1708375937852,-3009.13,0.00047671,30]
[314484749,1708375937861,-500.0,0.00047671,30]
[314484750,1708375937870,-500.0,0.00047671,14]
[314484751,1708375937879,-5612.0,0.00047671,30]
[314484752,1708375937889,-9120.54,0.00047671,30]
[314484753,1708375937897,-500.0,0.00047671,30]
[314484754,1708375937907,-3562.84,0.00047671,30]
[314484755,1708375937916,-500.0,0.00047671,30]
[314484756,1708375937925,-500.0,0.00047671,30]
[314484757,1708375937933,-500.0,0.00047671,30]
[314484758,1708375937943,-3072.77,0.00047671,30]
[314484759,1708375937951,-500.0,0.00047671,30]
[314484760,1708375937960,-500.0,0.00047671,30]
[314484761,1708375937969,-2054.19,0.00047671,30]
[314484762,1708375937978,-241.72874864,0.00047671,30]
[314484763,1708375937987,-1723.46,0.00047671,30]
[314484764,1708375937995,-500.0,0.00047671,30]
[314484765,1708375938004,-500.0,0.00047671,30]
[314484766,1708375938013,-500.0,0.00047671,30]
[314484767,1708375938021,-1071.31,0.00047671,30]
[314484768,1708375938030,-1151.9,0.00047671,30]
[314484769,1708375938039,-545.97,0.00047671,30]
[314484770,1708375938048,-2309.28,0.00047671,30]
[314484771,1708375938058,-500.0,0.00047671,2]
[314484772,1708375938067,-500.0,0.00047671,30]
[314484773,1708375938078,-1803.4,0.00047671,30]
[314484774,1708375938088,-500.0,0.00047671,30]
[314484775,1708375938102,-1886.18,0.00047671,30]
[314484776,1708375938111,-500.0,0.00047671,30]
[314484777,1708375938120,-500.0,0.00047671,30]
[314484778,1708375938129,-2872.4,0.00047671,30]
[314484779,1708375938139,-2704.83,0.00047671,30]
[314484780,1708375938149,-241.93570299,0.00047671,30]
[314484781,1708375938158,-500.0,0.00047671,30]
[314484782,1708375938167,-542.05,0.00047671,30]
[314484783,1708375938176,-721.8,0.00047671,30]
[314484784,1708375938186,-520.83,0.00047671,30]
[314484785,1708375938196,-500.0,0.00047671,30]
[314484786,1708375938205,-3755.12,0.00047671,30]
[314484787,1708375938214,-500.0,0.00047671,30]
[314484788,1708375938223,-2288.52,0.00047671,30]
[314484789,1708375938232,-4422.39,0.00047671,30]
[314484790,1708375938241,-500.0,0.00047671,30]
[314484791,1708375938250,-500.0,0.00047671,30]
[314484792,1708375938259,-500.0,0.00047671,30]
[314484793,1708375938267,-500.0,0.00047671,30]
[314484794,1708375938276,-500.0,0.00047671,30]
[314484795,1708375938285,-3732.75,0.00047671,30]
[314484796,1708375938294,-500.87,0.00047671,30]
[314484797,1708375938303,-4475.17,0.00047671,30]
[314484798,1708375938314,-500.0,0.00047671,30]
[314484799,1708375938323,-500.0,0.00047671,30]
[314484800,1708375938332,-500.0,0.00047671,30]
[314484801,1708375938341,-500.0,0.00047671,30]
[314484802,1708375938350,-2396.12,0.00047671,30]
[314484803,1708375938359,-500.0,0.00047671,30]
[314484804,1708375938368,-708.6,0.00047671,30]
[314484805,1708375938377,-500.0,0.00047671,30]
[314484806,1708375938386,-500.0,0.00047671,30]
[314484807,1708375938396,-1041.64,0.00047671,30]
[314484808,1708375938406,-500.0,0.00047671,30]
[314484809,1708375938414,-2295.56,0.00047671,30]
[314484810,1708375938423,-840.86,0.00047671,30]
[314484811,1708375938432,-500.0,0.00047671,30]
[314484812,1708375938442,-1644.14,0.00047671,30]
[314484813,1708375938453,-500.0,0.00047671,30]
[314484814,1708375938462,-500.0,0.00047671,30]
[314484815,1708375938471,-2371.53,0.00047671,30]
[314484816,1708375938481,-535.6,0.00047671,30]
[314484817,1708375938490,-500.0,0.00047671,30]
[314484818,1708375938499,-500.0,0.00047671,30]
[314484819,1708375938507,-500.0,0.00047671,30]
[314484820,1708375938516,-500.0,0.00047671,30]
[314484821,1708375938525,-4038.36,0.00047671,30]
[314484822,1708375938534,-1050.6,0.00047671,30]
[314484823,1708375938543,-658.5,0.00047671,30]
[314484824,1708375938551,-500.0,0.00047671,30]
[314484825,1708375938562,-1214.7,0.00047671,30]
[314484826,1708375938571,-4457.1,0.00047671,30]
[314484827,1708375938580,-500.0,0.00047671,30]
[314484828,1708375938589,-500.0,0.00047671,30]
[314484829,1708375938598,-500.0,0.00047671,30]
[314484830,1708375938607,-2419.58,0.00047671,30]
[314484831,1708375938615,-500.0,0.00047671,30]
[314484832,1708375938624,-613.95,0.00047671,30]
[314484833,1708375938633,-3961.59,0.00047671,30]
[314484834,1708375938642,-768.13,0.00047671,30]
[314484835,1708375938652,-500.0,0.00047671,30]
[314484836,1708375938661,-912.83,0.00047671,30]
[314484837,1708375938670,-500.0,0.00047671,30]
[314484838,1708375938679,-500.0,0.00047671,30]
[314484839,1708375938688,-1553.73,0.00047671,30]
[314484840,1708375938697,-359.0419992,0.00047671,30]
[314484841,1708375938706,-513.62,0.00047671,30]
[314484842,1708375938715,-500.0,0.00047671,30]
[314484843,1708375938724,-500.0,0.00047671,30]
[314484844,1708375938733,-1959.87,0.00047671,30]